bitfinex/quotes_SOLUSD_20240716
["timestamp","ask_amount","ask_price","bid_price","bid_amount"]
[1721130395159,16.37416063,157.67,157.61,1.26861322]
[1721130395843,16.37416063,157.67,157.56,41.75]
[1721130396167,16.37416063,157.67,157.57,45.0]
[1721130396759,16.37416063,157.67,157.58,1.26875711]
[1721130396942,16.37416063,157.67,157.58,21.26875711]
[1721130397341,16.37416063,157.67,157.59,86.75]
[1721130397544,15.9568,157.67,157.6,21.26861101]
[1721130397773,15.9568,157.67,157.61,1.26850424]
[1721130398574,16.37416063,157.67,157.6,20.0]
[1721130398881,15.9568,157.67,157.61,1.2686297]
[1721130400067,16.37416063,157.67,157.61,1.2686297]
[1721130400280,16.37416063,157.67,157.6,20.0]
[1721130400576,16.37416063,157.67,157.61,1.2685966]
[1721130401479,16.37416063,157.67,157.61,1.26866409]
[1721130402058,22.71656063,157.67,157.6,20.0]
[1721130402252,22.71656063,157.67,157.61,1.26879841]
[1721130402454,16.3429,157.66,157.59,37.15]
[1721130402664,0.58736063,157.65,157.59,37.15]
[1721130402880,0.41736063,157.64,157.59,37.15]
[1721130403472,0.41736063,157.64,157.55,1.26893694]
[1721130403473,0.41736063,157.64,157.56,37.15]
[1721130403683,0.41736063,157.64,157.57,1.26894581]
[1721130404053,0.41736063,157.64,157.57,21.26894581]
[1721130404262,0.41736063,157.65,157.57,21.26894581]
[1721130404584,0.41736063,157.65,157.58,20.0]
[1721130404755,0.41736063,157.65,157.55,20.0]
[1721130404952,60.7701,157.73,157.55,20.0]
[1721130404953,7.82049533,157.72,157.64,41.81]
[1721130405186,7.82049533,157.72,157.65,21.26834095]
[1721130406046,7.4031347,157.72,157.65,21.26834095]
[1721130408088,7.4031347,157.72,157.68,41.81]
[1721130408382,7.4031347,157.72,157.69,21.26798176]
[1721130408549,0.8562347,157.72,157.69,21.26798176]
[1721130414272,0.8562347,157.72,157.69,20.0]
[1721130414577,0.8562347,157.72,157.69,21.26794321]
[1721130415572,0.8562347,157.72,157.7,1.26792992]
[1721130415799,0.8562347,157.72,157.7,1.26795188]
[1721130416158,0.8562347,157.72,157.71,1.26795286]
[1721130417382,0.8562347,157.72,157.7,46.26792972]
[1721130417555,0.8562347,157.72,157.71,1.26777166]
[1721130417752,0.8562347,157.72,157.69,20.0]
[1721130419662,0.8562347,157.72,157.7,1.26779606]
[1721130420564,0.8562347,157.72,157.69,20.0]
[1721130420797,0.8562347,157.72,157.7,1.26780298]
[1721130421275,0.8562347,157.72,157.69,65.0]
[1721130421483,0.8562347,157.72,157.69,20.0]
[1721130421671,0.8562347,157.72,157.7,1.26779385]
[1721130421869,0.8562347,157.72,157.71,1.26785203]
[1721130423262,0.8562347,157.72,157.69,20.0]
[1721130423662,0.8562347,157.72,157.7,1.26771541]
[1721130423863,0.8562347,157.72,157.7,46.26771541]
[1721130424164,0.8562347,157.72,157.71,20.0]
[1721130424379,0.8562347,157.72,157.71,57.09]
[1721130424873,0.8562347,157.72,157.71,58.35773147]
[1721130425273,0.8562347,157.72,157.71,103.35773147]
[1721130425667,0.8562347,157.72,157.71,103.69773147]
[1721130426176,0.8562347,157.72,157.71,122.76773147]
[1721130426365,6.6495,157.8,157.71,122.76773147]
[1721130426563,6.6495,157.8,157.76,37.09]
[1721130426766,6.6495,157.8,157.77,1.26738884]
[1721130428876,6.6495,157.8,157.76,37.09]
[1721130430271,6.6495,157.8,157.77,1.26746595]
[1721130432602,6.6495,157.8,157.76,37.09]
[1721130432788,6.6495,157.8,157.73,37.09]
[1721130433106,6.6495,157.8,157.74,21.26747067]
[1721130433274,6.6495,157.8,157.74,20.0]
[1721130433472,6.6495,157.8,157.74,21.26746785]
[1721130434702,6.6495,157.8,157.74,20.0]
[1721130434897,7.06686063,157.8,157.74,20.0]
[1721130435076,0.41736063,157.79,157.74,20.0]
[1721130435277,7.06686063,157.8,157.74,20.0]
[1721130435478,6.6495,157.8,157.75,1.26757379]
[1721130436901,0.41736063,157.79,157.74,20.0]
[1721130437288,0.41736063,157.79,157.7,37.09]
[1721130437486,16.3379,157.78,157.7,37.09]
[1721130437706,21.9669,157.76,157.67,37.09]
[1721130438005,21.9669,157.76,157.68,1.26811881]
[1721130438006,0.58736063,157.75,157.68,1.26811881]
[1721130438187,0.41736063,157.75,157.68,1.26811881]
[1721130438986,22.38426063,157.76,157.68,1.26811881]
[1721130439198,22.38426063,157.76,157.68,21.26811881]
[1721130439708,21.9669,157.76,157.68,21.26811881]
[1721130439907,21.9669,157.76,157.7,37.09]
[1721130440079,21.9669,157.76,157.71,1.26781376]
[1721130440707,21.9669,157.76,157.71,21.26781376]
[1721130441105,15.7405,157.8,157.73,37.09]
[1721130441297,22.052,157.8,157.74,1.26758]
[1721130441705,22.052,157.8,157.74,21.26758]
[1721130442295,22.052,157.8,157.75,45.0]
[1721130442485,22.052,157.8,157.76,1.2673898]
[1721130442791,22.052,157.8,157.77,1.26739676]
[1721130443388,22.052,157.8,157.74,20.0]
[1721130443597,22.052,157.8,157.75,1.26750774]
[1721130444103,22.052,157.8,157.74,20.0]
[1721130445113,22.052,157.8,157.75,1.26751129]
[1721130445689,22.052,157.8,157.74,20.0]
[1721130447091,22.052,157.8,157.75,1.26746703]
[1721130447293,22.052,157.8,157.74,20.0]
[1721130448203,0.41736063,157.79,157.73,37.09]
[1721130448406,0.17,157.78,157.68,37.09]
[1721130448607,45.34,157.78,157.69,1.26792936]
[1721130448784,0.41736063,157.77,157.69,1.26792936]
[1721130449112,0.41736063,157.77,157.68,37.09]
[1721130449614,0.41736063,157.77,157.69,1.26790032]
[1721130449911,0.41736063,157.77,157.69,20.0]
[1721130450400,16.3376,157.79,157.69,20.0]
[1721130450401,0.41736063,157.78,157.69,20.0]
[1721130450802,0.41736063,157.78,157.7,1.26789625]
[1721130450994,10.0,157.77,157.7,1.26789625]
[1721130451312,0.41736063,157.76,157.7,1.26789625]
[1721130451808,0.75736063,157.79,157.7,1.26789625]
[1721130452009,10.34,157.78,157.7,1.26789625]
[1721130452222,6.1839,157.76,157.7,1.26789625]
[1721130452393,0.41736063,157.75,157.7,1.26789625]
[1721130453121,15.0447,157.74,157.7,1.26789625]
[1721130453804,15.0447,157.74,157.69,20.0]
[1721130456408,0.41736063,157.73,157.67,21.26814562]
[1721130456594,0.41736063,157.73,157.68,21.26814362]
[1721130456795,0.41736063,157.73,157.68,1.26814362]
[1721130457623,0.41736063,157.73,157.67,1.26814574]
[1721130458113,0.41736063,157.73,157.68,1.26814583]
[1721130458625,0.41736063,157.73,157.66,20.0]
[1721130459123,0.41736063,157.73,157.67,1.26821802]
[1721130459495,0.41736063,157.73,157.66,20.0]
[1721130460107,15.0447,157.74,157.66,21.268098]
[1721130460923,0.41736063,157.73,157.66,21.268098]
[1721130461110,6.0898,157.71,157.66,21.2681004]
[1721130461299,0.41736063,157.7,157.63,37.09]
[1721130461497,0.41736063,157.7,157.64,1.26841496]
[1721130462595,0.41736063,157.7,157.64,21.26841496]
[1721130462797,0.41736063,157.7,157.64,1.26841496]
[1721130463011,0.41736063,157.7,157.65,1.26851949]
[1721130463295,0.41736063,157.7,157.63,1.26843042]
[1721130464222,0.41736063,157.7,157.63,21.26843042]
[1721130465302,0.41736063,157.7,157.63,21.26852742]
[1721130466727,0.41736063,157.7,157.63,21.26853536]
[1721130466930,0.41736063,157.7,157.63,20.0]
[1721130466931,61.75856063,157.7,157.63,20.0]
[1721130467109,55.41736063,157.7,157.63,20.0]
[1721130467620,45.41736063,157.7,157.63,20.0]
[1721130467825,0.41736063,157.7,157.64,1.26858458]
[1721130468022,0.41736063,157.7,157.65,1.26850118]
[1721130468336,0.41736063,157.7,157.64,1.2685022]
[1721130469001,0.41736063,157.7,157.63,20.0]
[1721130469203,0.41736063,157.7,157.64,1.26853168]
[1721130470202,6.6556,157.78,157.68,37.09]
[1721130470400,6.6556,157.78,157.74,37.09]
[1721130470735,6.6556,157.78,157.75,1.26766873]
[1721130471614,6.6556,157.78,157.74,37.09]
[1721130472028,6.6556,157.78,157.71,37.09]
[1721130472233,6.6556,157.78,157.72,20.0]
[1721130472522,6.6556,157.78,157.73,1.2677252]
[1721130472732,6.6556,157.78,157.74,1.26773371]
[1721130473101,6.6556,157.78,157.73,1.26776865]
[1721130473328,6.6556,157.78,157.74,1.26776804]
[1721130473522,16.6556,157.78,157.62,6.62843471]
[1721130473699,0.34,157.77,157.68,37.09]
[1721130473903,6.6556,157.78,157.69,1.26798252]
[1721130474132,16.6556,157.78,157.68,37.09]
[1721130474310,0.34,157.77,157.69,1.2677943]
[1721130475020,0.34,157.77,157.69,21.2677943]
[1721130475338,45.34,157.77,157.69,21.2677943]
[1721130475518,10.0,157.76,157.69,1.2677943]
[1721130475715,10.0,157.76,157.66,37.09]
[1721130475716,45.34,157.75,157.66,37.09]
[1721130476029,0.34,157.75,157.67,1.26813322]
[1721130476526,10.0,157.76,157.67,1.26813322]
[1721130476726,45.34,157.75,157.67,1.26813322]
[1721130476928,45.34,157.75,157.67,21.26813322]
[1721130477429,10.0,157.74,157.66,37.09]
[1721130477635,16.3396,157.74,157.66,37.09]
[1721130478729,28.9556,157.73,157.66,37.09]
[1721130479035,74.1256,157.73,157.63,37.09]
[1721130479201,67.7856,157.73,157.64,20.0]
[1721130479406,6.5961,157.8,157.71,37.09]
[1721130479632,6.5961,157.8,157.72,21.26771379]
[1721130479826,6.5961,157.8,157.74,37.09]
[1721130480015,6.5961,157.8,157.75,21.26747872]
[1721130480222,6.5961,157.8,157.75,20.0]
[1721130480633,6.5961,157.8,157.75,1.26751019]
[1721130480852,6.5961,157.8,157.74,37.09]
[1721130481024,6.5961,157.8,157.75,1.26747015]
[1721130481224,6.5961,157.8,157.74,37.09]
[1721130481423,6.5961,157.8,157.75,1.26745763]
[1721130481746,6.5961,157.8,157.68,37.09]
[1721130481747,6.5961,157.8,157.72,38.35755267]
[1721130482047,6.5961,157.8,157.73,20.0]
[1721130482347,6.5961,157.8,157.73,21.26773148]
[1721130482642,6.5961,157.8,157.74,1.26773921]
[1721130483321,6.5961,157.8,157.73,1.26773953]
[1721130483720,6.5961,157.8,157.74,1.26773903]
[1721130484130,15.8384,157.85,157.73,1.26773899]
[1721130484308,0.8562347,157.88,157.79,37.09]
[1721130484514,0.8562347,157.88,157.74,17.58397432]
[1721130484515,0.8562347,157.88,157.82,37.09]
[1721130484729,0.8562347,157.88,157.83,1.26692232]
[1721130485316,0.8562347,157.88,157.82,37.09]
[1721130485745,0.8562347,157.88,157.83,1.26707688]
[1721130486041,0.8562347,157.88,157.82,37.09]
[1721130486242,0.8562347,157.88,157.83,1.2669633]
[1721130486844,0.5,157.87,157.82,37.09]
[1721130487647,1.3562347,157.88,157.83,1.2670671]
[1721130488240,1.3562347,157.88,157.82,37.09]
[1721130488633,7.6903347,157.88,157.82,37.09]
[1721130488932,7.6903347,157.88,157.79,37.09]
[1721130489131,17.4212347,157.88,157.8,21.26712231]
[1721130489644,59.5134757,157.88,157.8,21.26712231]
[1721130491426,65.8476757,157.88,157.8,21.26712231]
[1721130491623,59.5134757,157.88,157.8,20.0]
[1721130492147,65.8473757,157.88,157.81,1.2671387]
[1721130493347,0.5,157.87,157.81,1.2671387]
[1721130493540,0.5,157.87,157.8,20.0]
[1721130493737,0.5,157.87,157.81,1.26708549]
[1721130494138,0.5,157.87,157.8,20.0]
[1721130494336,0.5,157.87,157.81,0.7044965]
[1721130494527,0.5,157.87,157.8,20.0]
[1721130494731,0.5,157.87,157.81,1.26712316]
[1721130495348,0.5,157.87,157.8,37.09]
[1721130495535,0.5,157.87,157.81,1.26702051]
[1721130496744,0.5,157.87,157.8,37.09]
[1721130497929,0.5,157.87,157.81,1.2670767]
[1721130498547,6.5324,157.86,157.81,1.2670767]
[1721130498734,0.5,157.85,157.8,37.09]
[1721130498948,6.8353,157.85,157.77,37.09]
[1721130499261,0.5,157.85,157.78,20.0]
[1721130499634,0.5,157.85,157.79,0.99011531]
[1721130499635,6.8351,157.85,157.79,0.99011531]
[1721130499952,6.8351,157.85,157.8,1.26729367]
[1721130500265,0.5,157.85,157.79,1.26728531]
[1721130500469,10.0,157.84,157.77,37.09]
[1721130500657,7.1763,157.83,157.75,1.26747194]
[1721130500955,0.5,157.82,157.75,1.26747194]
[1721130501162,6.8351,157.85,157.77,37.09]
[1721130501342,16.8351,157.85,157.78,1.26733356]
[1721130501660,26.8351,157.85,157.78,1.26733356]
[1721130501866,20.5,157.85,157.78,1.26737556]
[1721130502159,20.5,157.85,157.77,37.09]
[1721130502356,26.8351,157.85,157.77,37.09]
[1721130503059,0.5,157.85,157.78,20.0]
[1721130503233,0.5,157.85,157.78,21.26737593]
[1721130503958,6.8724,157.86,157.78,21.26737593]
[1721130503959,7.0324,157.86,157.78,21.26737593]
[1721130504164,6.5324,157.86,157.8,37.09]
[1721130504364,6.5324,157.86,157.81,1.26707004]
[1721130504664,0.5,157.85,157.8,38.35712792]
[1721130504839,0.5,157.85,157.8,1.26712792]
[1721130505165,6.5324,157.86,157.8,1.26712792]
[1721130505660,0.5,157.85,157.78,20.0]
[1721130506063,0.5,157.85,157.79,1.26717657]
[1721130508043,7.0324,157.86,157.79,1.26717657]
[1721130509151,6.5324,157.86,157.79,1.26717657]
[1721130509359,12.8673,157.86,157.79,1.26717657]
[1721130509674,6.5324,157.86,157.79,1.26717657]
[1721130510533,0.5,157.85,157.79,1.26717657]
[1721130511462,6.8351,157.85,157.79,1.26717657]
[1721130511761,0.5,157.85,157.79,1.26717657]
[1721130512341,6.8351,157.85,157.79,1.26717657]
[1721130512559,6.3355,157.84,157.79,1.26717657]
[1721130512761,0.5,157.83,157.78,21.26732081]
[1721130512959,15.8722,157.81,157.76,37.09]
[1721130513942,15.8722,157.81,157.77,1.26758406]
[1721130514365,15.8722,157.81,157.77,1.26751733]
[1721130514564,15.8722,157.81,157.76,37.09]
[1721130514742,15.8722,157.81,157.77,1.26751441]
[1721130515544,15.8722,157.81,157.76,37.09]
[1721130515760,0.5,157.8,157.76,37.09]
[1721130516066,6.211,157.79,157.73,37.09]
[1721130516249,6.211,157.79,157.74,1.26757734]
[1721130517052,6.211,157.79,157.73,37.09]
[1721130517356,6.211,157.79,157.74,1.26768669]
[1721130518348,0.5,157.78,157.74,1.26768669]
[1721130518664,0.5,157.78,157.73,37.09]
[1721130519164,6.711,157.79,157.74,1.26778042]
[1721130520261,13.0485,157.79,157.74,1.26778042]
[1721130520575,6.3386,157.77,157.7,37.09]
[1721130520747,16.711,157.79,157.71,21.26795633]
[1721130520748,0.5,157.76,157.71,21.26795633]
[1721130521146,0.5,157.78,157.71,21.26795633]
[1721130522145,6.838,157.78,157.71,21.26795633]
[1721130522344,6.838,157.78,157.75,18.55]
[1721130522572,6.838,157.78,157.71,21.26795633]
[1721130522573,6.3384,157.77,157.71,21.26795633]
[1721130522878,6.8388,157.76,157.69,21.26794148]
[1721130523055,6.3392,157.75,157.69,1.26794148]
[1721130523245,6.3392,157.75,157.58,255.3]
[1721130523246,6.8396,157.74,157.72,18.55]
[1721130523454,6.035,157.72,157.62,15.2949]
[1721130523666,0.5,157.71,157.63,1.26819367]
[1721130523866,0.5,157.71,157.7,18.55]
[1721130524051,6.035,157.72,157.7,18.55]
[1721130524052,6.535,157.72,157.7,18.55]
[1721130524253,6.535,157.72,157.66,37.12]
[1721130524480,6.535,157.72,157.67,1.26831558]
[1721130524848,16.8422,157.74,157.67,1.26831558]
[1721130525047,16.3422,157.74,157.67,1.26831558]
[1721130525248,0.5,157.73,157.67,1.26831558]
[1721130525552,6.1952,157.76,157.69,37.12]
[1721130525754,6.1952,157.76,157.7,21.26786477]
[1721130525953,6.1952,157.76,157.71,1.26790004]
[1721130527774,13.034,157.76,157.7,21.26783932]
[1721130528747,6.6952,157.76,157.71,1.26803767]
[1721130529153,13.0339,157.76,157.7,21.26800564]
[1721130529850,6.6952,157.76,157.7,21.26800564]
[1721130530053,6.1952,157.76,157.71,1.26806909]
[1721130530751,15.4533,157.78,157.71,1.26806909]
[1721130531056,15.4533,157.78,157.72,37.12]
[1721130531368,0.5,157.77,157.73,1.26770019]
[1721130531881,15.9533,157.78,157.73,1.26770019]
[1721130532968,0.5,157.79,157.73,1.26770019]
[1721130533269,6.8375,157.79,157.73,1.26770019]
[1721130533775,0.5,157.79,157.73,1.26770019]
[1721130537255,6.8376,157.79,157.73,1.26770019]
[1721130538862,0.5,157.79,157.73,1.26770019]
[1721130540892,10.0,157.76,157.7,1.26778874]
[1721130541053,0.5,157.75,157.66,38.38817572]
[1721130541253,0.5,157.77,157.69,37.12]
[1721130541592,0.5,157.77,157.7,1.26797771]
[1721130541884,0.5,157.77,157.69,37.12]
[1721130541885,0.5,157.77,157.71,1.26790789]
[1721130542271,6.8381,157.78,157.71,1.26790789]
[1721130542480,6.3384,157.77,157.71,1.26790789]
[1721130542659,0.5,157.76,157.71,1.26790789]
[1721130542861,0.5,157.76,157.7,21.26796347]
[1721130543056,0.5,157.76,157.71,1.26795143]
[1721130544257,0.5,157.76,157.75,18.55]
[1721130545874,0.5,157.76,157.74,18.55]
[1721130546680,0.5,157.76,157.75,18.55]
[1721130546863,0.5,157.77,157.75,18.55]
[1721130547266,6.3387,157.76,157.74,18.55]
[1721130547587,6.1155,157.8,157.75,18.55]
[1721130547762,0.5,157.79,157.75,1.26793481]
[1721130547960,0.5,157.79,157.78,18.55]
[1721130548357,0.5,157.8,157.78,18.55]
[1721130548567,0.5,157.8,157.79,18.55]
[1721130548903,0.5,157.81,157.79,18.55]
[1721130549077,0.5,157.81,157.73,1.26761691]
[1721130549382,0.5,157.81,157.79,18.55]
[1721130550573,6.8368,157.81,157.74,1.26764992]
[1721130550772,6.8368,157.81,157.79,18.55]
[1721130550966,6.8368,157.81,157.78,18.55]
[1721130551166,0.5,157.81,157.78,18.55]
[1721130551386,0.5,157.81,157.79,18.55]
[1721130552564,6.8368,157.81,157.79,18.55]
[1721130554184,0.5,157.81,157.79,18.55]
[1721130554385,0.5,157.81,157.8,18.55]
[1721130554684,6.8367,157.81,157.79,18.55]
[1721130554892,6.3367,157.81,157.8,18.55]
[1721130555397,6.3367,157.81,157.72,16.3008]
[1721130555562,6.3367,157.81,157.79,18.55]
[1721130555763,6.3367,157.81,157.8,18.55]
[1721130556065,6.6764,157.82,157.79,18.55]
[1721130556262,6.3367,157.81,157.79,18.55]
[1721130556767,0.5,157.8,157.79,18.55]
[1721130557585,0.5,157.8,157.78,18.55]
[1721130557773,6.8373,157.8,157.73,20.0]
[1721130557977,6.8373,157.8,157.76,18.55]
[1721130559087,0.5,157.8,157.76,18.55]
[1721130559394,0.5,157.8,157.77,18.55]
[1721130560983,6.8371,157.8,157.73,21.2676719]
[1721130561184,0.5,157.8,157.77,18.55]
[1721130561385,45.5,157.8,157.77,18.55]
[1721130561767,51.8372,157.8,157.73,20.0]
[1721130561973,10.34,157.79,157.73,21.26781562]
[1721130562175,0.5,157.78,157.76,18.55]
[1721130565791,0.5,157.78,157.75,18.55]
[1721130565990,6.8379,157.78,157.73,20.0]
[1721130566188,6.8379,157.78,157.75,18.55]
[1721130566391,6.8379,157.78,157.72,16.3008]
[1721130566392,6.8379,157.78,157.74,18.55]
[1721130567099,6.8379,157.78,157.73,18.55]
[1721130567296,16.3384,157.77,157.7,1.26792888]
[1721130567481,0.5,157.76,157.73,18.55]
[1721130567980,6.3392,157.75,157.69,20.0]
[1721130568311,6.3392,157.75,157.7,18.55]
[1721130568312,0.5,157.74,157.7,18.55]
[1721130569387,0.5,157.74,157.65,6.4463]
[1721130569592,0.5,157.73,157.69,18.55]
[1721130569777,0.5,157.73,157.7,18.55]
[1721130569976,0.5,157.73,157.69,18.55]
[1721130570583,0.5,157.73,157.7,18.55]
[1721130570954,45.5,157.74,157.7,18.55]
[1721130571203,0.5,157.73,157.7,18.55]
[1721130572686,0.5,157.73,157.69,18.55]
[1721130572979,0.5,157.73,157.7,18.55]
[1721130573285,0.5,157.73,157.69,18.55]
[1721130573710,10.5,157.73,157.69,18.55]
[1721130573891,16.84,157.73,157.66,1.26825449]
[1721130574200,6.3404,157.72,157.65,20.0]
[1721130574395,0.84,157.71,157.67,18.55]
[1721130574592,0.5,157.7,157.64,16.3484]
[1721130574812,0.5,157.7,157.66,18.55]
[1721130575189,45.5,157.7,157.66,18.55]
[1721130575377,0.34,157.69,157.66,18.55]
[1721130576203,6.6818,157.69,157.65,18.55]
[1721130576376,25.3921,157.68,157.6,16.1699]
[1721130576577,0.5,157.67,157.6,16.1699]
[1721130576903,55.5,157.67,157.6,16.1699]
[1721130577102,61.8424,157.67,157.63,18.55]
[1721130577326,0.34,157.66,157.62,18.55]
[1721130577530,0.5,157.65,157.62,18.55]
[1721130577702,0.5,157.65,157.57,15.0517]
[1721130578031,0.5,157.64,157.6,18.55]
[1721130578346,10.5,157.64,157.6,18.55]
[1721130578504,0.5,157.64,157.6,18.55]
[1721130578707,0.5,157.64,157.61,18.55]
[1721130579627,0.5,157.64,157.63,18.55]
[1721130579830,0.5,157.67,157.63,18.55]
[1721130580002,45.5,157.67,157.63,18.55]
[1721130580339,0.5,157.68,157.66,18.55]
[1721130580799,0.5,157.68,157.61,1.26856707]
[1721130580999,0.5,157.68,157.65,18.55]
[1721130581338,0.5,157.68,157.66,18.55]
[1721130581530,0.5,157.68,157.65,18.55]
[1721130581701,6.8421,157.68,157.64,18.55]
[1721130583203,0.17,157.67,157.65,18.55]
[1721130583401,0.5,157.67,157.64,18.55]
[1721130583604,10.0,157.6,157.52,6.59482242]
[1721130583923,10.0,157.6,157.5,15.6357]
[1721130583924,18.55,157.55,157.5,15.6357]
[1721130584121,10.0,157.58,157.5,15.6357]
[1721130584122,0.5,157.57,157.51,1.26960128]
[1721130584625,6.8464,157.57,157.51,1.26960128]
[1721130585105,6.8469,157.56,157.51,1.26960128]
[1721130585307,0.5,157.56,157.51,1.26956656]
[1721130585637,6.8469,157.56,157.51,1.26956656]
[1721130586005,6.8468,157.56,157.51,1.26956656]
[1721130586416,0.5,157.57,157.52,1.26953538]
[1721130587322,6.3468,157.56,157.51,1.26946516]
[1721130587525,0.5,157.55,157.5,15.6357]
[1721130588035,6.3469,157.56,157.51,1.26956839]
[1721130588232,6.3469,157.56,157.51,1.26951785]
[1721130588838,6.8472,157.55,157.5,15.6357]
[1721130589017,6.3476,157.54,157.45,15.8415]
[1721130589210,0.5,157.53,157.46,21.26971685]
[1721130589408,0.5,157.53,157.46,1.26971685]
[1721130589732,0.5,157.55,157.45,15.8415]
[1721130590026,6.3487,157.52,157.45,15.8415]
[1721130590945,6.3487,157.52,157.46,21.26982293]
[1721130592228,0.5,157.51,157.46,21.26982293]
[1721130592627,0.5,157.51,157.46,1.26982293]
[1721130593012,0.5,157.52,157.46,1.26982293]
[1721130593634,6.8484,157.52,157.46,1.26982293]
[1721130593843,45.84,157.51,157.44,1.26989756]
[1721130594009,45.84,157.51,157.41,15.3417]
[1721130594209,45.84,157.51,157.42,1.27019356]
[1721130595029,45.84,157.51,157.42,21.27019356]
[1721130595235,6.3492,157.5,157.42,21.27019356]
[1721130595542,0.5,157.49,157.42,21.27019356]
[1721130595726,7.0188,157.51,157.42,21.27019356]
[1721130595927,0.5,157.51,157.42,21.27019356]
[1721130596141,6.6142,157.52,157.42,21.27019356]
[1721130596448,6.6142,157.52,157.43,45.0]
[1721130596648,12.9626,157.52,157.44,21.26986252]
[1721130596813,6.6142,157.52,157.44,21.26986252]
[1721130597015,6.8481,157.53,157.44,21.26986252]
[1721130598239,6.3476,157.54,157.45,45.0]
[1721130598458,6.8473,157.55,157.46,21.26968794]
[1721130598632,0.5,157.54,157.46,21.26968794]
[1721130599318,0.5,157.54,157.47,16.1463]
[1721130599521,0.5,157.58,157.48,21.26964706]
[1721130599728,6.8454,157.6,157.49,46.43931398]
[1721130599931,0.5,157.6,157.5,57.38]
[1721130600232,0.5,157.6,157.51,46.26917144]
[1721130600437,0.5,157.6,157.52,21.26918422]
[1721130600859,13.0546,157.61,157.52,21.26918422]
[1721130601250,6.8453,157.6,157.52,20.0]
[1721130601458,6.8449,157.61,157.54,16.214]
[1721130601756,25.859,157.64,157.54,16.214]
[1721130601757,6.844,157.63,157.55,1.26911455]
[1721130601959,6.844,157.63,157.55,21.26911455]
[1721130602479,0.5,157.63,157.55,21.26911455]
[1721130602633,6.344,157.63,157.55,21.26911455]
[1721130602930,0.5,157.64,157.55,21.26911455]
[1721130603137,6.3444,157.62,157.55,21.26911455]
[1721130603961,0.5,157.64,157.55,21.26911455]
[1721130604134,6.8436,157.64,157.55,21.26911455]
[1721130604334,6.344,157.63,157.55,21.26911455]
[1721130604540,0.5,157.64,157.55,21.26911455]
[1721130604853,0.5,157.66,157.56,82.38]
[1721130605041,0.5,157.66,157.57,21.26874838]
[1721130605555,0.5,157.67,157.58,45.0]
[1721130605731,10.0,157.67,157.59,21.26865601]
[1721130605928,6.8431,157.66,157.6,1.26884922]
[1721130606131,6.3432,157.65,157.58,1.26877718]
[1721130606358,6.8436,157.64,157.58,1.26877718]
[1721130606565,6.344,157.63,157.58,1.26877718]
[1721130606734,10.0,157.65,157.58,1.26877718]
[1721130607045,6.344,157.63,157.58,1.26877718]
[1721130607243,6.344,157.63,157.56,20.0]
[1721130607452,0.34,157.66,157.57,1.26897211]
[1721130607663,6.3432,157.65,157.57,1.26897211]
[1721130607975,6.8432,157.65,157.57,1.26897211]
[1721130608258,0.5,157.65,157.57,1.26897211]
[1721130608558,10.5,157.65,157.56,20.0]
[1721130608766,6.3441,157.63,157.56,20.0]
[1721130608978,0.5,157.62,157.56,20.0]
[1721130609856,6.8444,157.62,157.55,20.0]
[1721130610067,0.5,157.61,157.55,20.0]
[1721130610991,6.8448,157.61,157.54,16.214]
[1721130611156,6.3452,157.6,157.54,16.214]